bitfinex/quotes_ETHUSD_20240701
["timestamp","ask_amount","ask_price","bid_price","bid_amount"]
[1719869445505,0.26097298,3463.1,3463.0,3.0]
[1719869445670,0.62,3463.4,3463.0,3.0]
[1719869445872,0.26097298,3463.1,3463.0,3.0]
[1719869446114,0.62,3463.4,3463.0,3.0]
[1719869446317,0.26097298,3463.1,3463.0,3.0]
[1719869446474,0.62,3463.4,3463.0,3.0]
[1719869446822,0.98651494,3463.3,3463.0,3.0]
[1719869447122,0.98651494,3463.2,3463.0,3.0]
[1719869447325,0.26097298,3463.3,3463.0,3.0]
[1719869447467,0.98651597,3463.2,3463.0,3.0]
[1719869447667,0.26097298,3463.2,3463.0,3.0]
[1719869448004,0.62,3463.4,3463.0,3.0]
[1719869448175,0.26097298,3463.1,3463.0,3.0]
[1719869448374,0.62,3463.4,3463.0,3.0]
[1719869448594,0.26097298,3463.1,3463.0,3.0]
[1719869448901,0.62,3463.4,3463.0,3.0]
[1719869449077,0.98652954,3463.3,3463.0,3.0]
[1719869449283,0.98652954,3463.2,3463.0,3.0]
[1719869449473,0.48669889,3463.1,3463.0,3.0]
[1719869450182,0.74767187,3463.1,3463.0,3.0]
[1719869451001,0.74767187,3463.1,3463.0,5.88766]
[1719869451173,0.74767187,3463.1,3463.0,6.37140043]
[1719869452984,1.24750191,3463.1,3463.0,5.88766]
[1719869453177,0.74767187,3463.1,3463.0,5.88766]
[1719869453511,1.24750223,3463.1,3463.0,5.88766]
[1719869453807,1.24750364,3463.1,3463.0,5.88766]
[1719869455099,0.74767187,3463.1,3463.0,5.88766]
[1719869455311,0.48669889,3463.1,3463.0,9.265019]
[1719869455609,0.62,3463.6,3463.1,2.88758]
[1719869455909,2.88651,3464.4,3462.6,2.88792]
[1719869455910,2.88739,3463.4,3462.6,2.88792]
[1719869456109,0.62,3463.2,3462.6,2.88792]
[1719869456428,1.8728693,3463.1,3462.8,3.0]
[1719869456726,1.61195984,3463.0,3462.8,3.0]
[1719869457010,0.74769032,3462.9,3462.8,3.0]
[1719869458480,0.74769032,3462.9,3462.8,4.122323]
[1719869459524,0.74769032,3462.9,3462.8,7.010153]
[1719869460016,0.74769032,3462.9,3462.8,4.122323]
[1719869460222,1.99285241,3462.9,3462.3,3.0]
[1719869460389,1.11192988,3462.8,3462.3,5.88825]
[1719869460584,0.88092253,3462.9,3462.4,0.41681198]
[1719869460585,0.48676779,3462.7,3462.4,0.41681198]
[1719869460786,0.48676779,3462.6,3462.4,0.41681198]
[1719869461178,0.26074974,3462.5,3462.4,0.41681198]
[1719869461514,0.74751753,3462.5,3462.4,0.41681198]
[1719869466910,0.74751753,3462.5,3462.4,3.30498198]
[1719869467486,0.74751753,3462.5,3462.4,0.41681198]
[1719869468500,0.74751753,3462.5,3462.4,3.30498198]
[1719869468924,0.74751753,3462.5,3462.4,0.41681198]
[1719869471095,0.74751753,3462.5,3462.2,5.20261]
[1719869471316,0.48676779,3462.4,3462.2,5.20261]
[1719869471718,0.26074224,3462.3,3462.2,5.20261]
[1719869471897,0.74751003,3462.3,3462.2,5.20261]
[1719869472520,0.74738592,3462.3,3462.2,5.20261]
[1719869473632,0.26074224,3462.3,3462.2,5.20261]
[1719869473935,0.62,3462.7,3462.2,6.611717]
[1719869474246,0.74720547,3462.6,3462.2,6.611717]
[1719869474529,0.48655856,3462.5,3462.4,3.0]
[1719869474925,0.26064691,3462.5,3462.4,3.0]
[1719869475127,2.88784,3462.8,3462.4,3.0]
[1719869475128,0.48655856,3462.6,3462.4,3.0]
[1719869475299,0.74720547,3462.5,3462.4,3.0]
[1719869478734,3.63528547,3462.5,3462.0,3.0]
[1719869479035,0.48655856,3462.4,3462.3,3.0]
[1719869479437,0.48655856,3462.4,3462.0,2.4581]
[1719869479741,0.74720547,3462.4,3462.0,2.4581]
[1719869479939,0.26064691,3462.4,3462.3,3.0]
[1719869480234,0.74719102,3462.4,3462.3,3.0]
[1719869482307,0.74719102,3462.4,3462.0,2.4581]
[1719869482507,0.48654411,3462.3,3462.0,2.4581]
[1719869482838,0.26060204,3462.2,3462.0,2.4581]
[1719869483256,2.88808,3462.5,3462.3,3.0]
[1719869483432,0.48645359,3462.4,3462.3,3.0]
[1719869483628,0.48647124,3462.4,3462.3,3.0]
[1719869484328,0.48647124,3462.5,3462.3,3.0]
[1719869484532,0.48647124,3462.4,3462.3,3.0]
[1719869484912,2.88802,3462.6,3462.0,2.4581]
[1719869484913,0.48647124,3462.5,3462.0,2.4581]
[1719869485112,2.88802,3462.6,3462.0,2.4581]
[1719869485113,0.48647124,3462.4,3462.0,2.4581]
[1719869485354,0.48647124,3462.3,3462.0,2.4581]
[1719869485523,2.88802,3462.6,3462.3,3.0]
[1719869485848,0.4864797,3462.5,3462.3,3.0]
[1719869486041,0.4864797,3462.5,3462.0,2.4581]
[1719869486423,0.4864797,3462.5,3462.3,3.0]
[1719869487633,0.4864797,3462.4,3462.3,3.0]
[1719869487842,0.4864797,3462.7,3462.3,3.0]
[1719869488050,0.4864797,3462.6,3462.3,3.0]
[1719869488216,0.4864797,3462.5,3462.3,3.0]
[1719869488417,0.4864797,3462.4,3462.3,3.0]
[1719869488645,3.3743997,3462.7,3462.3,3.0]
[1719869488827,0.4864797,3462.6,3462.3,3.0]
[1719869489616,0.4864797,3462.6,3462.4,2.4808]
[1719869489816,0.4864797,3462.5,3462.4,2.4808]
[1719869490018,0.4864797,3462.8,3462.4,2.4808]
[1719869490228,1.11191533,3462.7,3462.4,2.4808]
[1719869490428,0.4864797,3462.6,3462.4,2.4808]
[1719869490649,0.4864797,3462.5,3462.4,2.4808]
[1719869490845,0.4864797,3462.5,3462.4,3.1198226]
[1719869491057,0.4864797,3462.8,3462.4,3.1198226]
[1719869491241,0.62544664,3462.7,3462.4,3.1198226]
[1719869491437,0.4864797,3462.6,3462.4,3.1198226]
[1719869491855,0.4864797,3462.5,3462.4,3.1198226]
[1719869492018,0.4864797,3462.8,3462.4,2.4808]
[1719869492225,1.61184155,3462.7,3462.3,5.88818]
[1719869492526,0.4864797,3462.6,3462.3,5.88818]
[1719869492725,0.4864797,3462.5,3462.3,5.88818]
[1719869492928,0.4864797,3462.4,3462.3,6.997035]
[1719869493533,0.4864797,3462.8,3462.3,6.997035]
[1719869493733,1.61183779,3462.7,3462.3,5.88818]
[1719869493957,0.4864797,3462.6,3462.3,5.88818]
[1719869494159,0.4864797,3462.5,3462.3,5.88818]
[1719869494326,0.4864797,3462.4,3462.3,5.88818]
[1719869494725,0.4864797,3462.8,3462.3,5.88818]
[1719869494936,1.12535411,3462.7,3462.3,5.88818]
[1719869495162,0.4864797,3462.6,3462.3,5.88818]
[1719869495357,0.4864797,3462.5,3462.3,5.88818]
[1719869495561,0.4864797,3462.4,3462.3,6.997035]
[1719869495739,0.4864797,3462.4,3462.3,5.88818]
[1719869496061,0.4864797,3462.8,3462.3,5.88818]
[1719869496249,1.12534807,3462.7,3462.3,5.88818]
[1719869496425,0.4864797,3462.6,3462.3,5.88818]
[1719869496627,0.4864797,3462.5,3462.3,6.97616484]
[1719869496827,0.4864797,3462.4,3462.3,6.97616484]
[1719869497053,0.4864797,3462.8,3462.3,5.88818]
[1719869497259,1.61186864,3462.7,3462.3,5.88818]
[1719869497480,0.4865165,3462.6,3462.3,5.88818]
[1719869497629,0.4865165,3462.5,3462.3,5.88818]
[1719869497828,0.4865165,3462.4,3462.3,5.88818]
[1719869498030,0.4865165,3462.8,3462.3,6.997035]
[1719869498249,0.26056279,3462.4,3462.3,5.88818]
[1719869498461,0.727,3462.9,3462.3,5.88818]
[1719869498462,0.4865165,3462.6,3462.3,5.88818]
[1719869498670,0.26055906,3462.4,3462.3,5.88818]
[1719869498835,0.4865165,3462.4,3462.3,5.88818]
[1719869499035,0.74707556,3462.4,3462.3,6.997035]
[1719869500867,0.4865165,3462.4,3462.3,6.997035]
[1719869501470,0.4865165,3462.8,3462.3,6.997035]
[1719869501648,1.61180817,3462.7,3462.3,5.88818]
[1719869501849,1.11189269,3462.6,3462.3,5.88818]
[1719869502151,0.4865165,3462.5,3462.3,5.88818]
[1719869502344,0.74707556,3462.4,3462.3,5.88818]
[1719869513255,1.37238878,3462.4,3462.3,5.88818]
[1719869514489,0.74707556,3462.4,3462.3,5.88818]
[1719869514658,1.37238482,3462.4,3462.3,5.88818]
[1719869517987,1.37239123,3462.4,3462.3,5.88818]
[1719869520802,0.74707556,3462.4,3462.3,5.88818]
[1719869520998,1.37232692,3462.4,3462.3,5.88818]
[1719869521414,0.74707556,3462.4,3462.3,5.88818]
[1719869521573,1.37229942,3462.4,3462.3,5.88818]
[1719869523598,0.74707556,3462.4,3462.3,5.88818]
[1719869523775,1.37225677,3462.4,3462.3,5.88818]
[1719869524283,1.37225602,3462.4,3462.3,5.88818]
[1719869526971,1.37227621,3462.4,3462.3,5.88818]
[1719869530304,1.37218602,3462.4,3462.3,3.0]
[1719869530620,1.37217332,3462.4,3462.3,3.0]
[1719869533519,0.74707556,3462.4,3462.3,3.0]
[1719869533829,1.3721719,3462.4,3462.3,3.0]
[1719869534117,1.37216605,3462.4,3462.3,3.0]
[1719869536385,0.74707556,3462.4,3462.3,3.0]
[1719869536788,1.37217693,3462.4,3462.3,3.0]
[1719869537113,1.37217689,3462.4,3462.3,3.0]
[1719869538590,0.88566039,3462.4,3462.3,3.0]
[1719869538791,1.37221842,3462.4,3461.9,8.88854]
[1719869538983,1.11165936,3462.3,3461.9,7.382419]
[1719869539188,0.74700215,3462.2,3461.9,10.382419]
[1719869539388,0.48655803,3462.1,3461.9,10.382419]
[1719869539685,2.88806,3462.6,3462.0,1.5705669]
[1719869539888,2.88806,3462.6,3461.9,8.88854]
[1719869539889,0.26042915,3462.0,3461.9,8.88854]
[1719869540193,0.48655684,3462.4,3461.9,8.88854]
[1719869540399,1.1117292,3462.3,3461.9,8.88854]
[1719869540605,0.48655684,3462.2,3461.9,8.88854]
[1719869540926,0.48655684,3462.1,3461.9,10.382419]
[1719869541488,2.88806,3462.6,3461.9,10.382419]
[1719869541689,1.1117385,3462.5,3461.9,8.88854]
[1719869542025,1.1117385,3462.4,3461.9,8.88854]
[1719869542192,1.1117385,3462.3,3461.9,8.88854]
[1719869542387,0.4865583,3462.2,3461.9,3.0]
[1719869542598,3.3748983,3462.2,3461.9,3.0]
[1719869542825,0.74698932,3462.1,3461.9,3.0]
[1719869543027,0.4865583,3462.0,3461.9,3.0]
[1719869543413,0.74698932,3462.0,3461.9,3.0]
[1719869544340,0.74698932,3462.0,3461.9,9.189261]
[1719869544645,0.4865583,3462.0,3461.9,9.189261]
[1719869544840,2.88801,3462.6,3462.2,3.0]
[1719869545018,1.61164101,3462.5,3462.2,3.0]
[1719869545214,1.11169848,3462.4,3462.2,3.0]
[1719869545416,1.11169848,3462.3,3462.2,3.0]
[1719869546545,1.11170473,3462.3,3462.2,3.0]
[1719869548950,0.48643,3462.3,3462.2,3.0]
[1719869549834,2.26603,3462.6,3462.2,3.0]
[1719869550148,1.11165447,3462.5,3462.2,3.0]
[1719869550343,1.11165447,3462.4,3462.2,3.0]
[1719869550654,0.48643,3462.3,3462.2,3.0]
[1719869551415,0.48643,3462.5,3462.2,3.0]
[1719869551714,1.11166346,3462.4,3462.2,3.0]
[1719869551945,2.8885,3462.0,3461.5,3.0]
[1719869552245,1.11165509,3461.9,3461.8,3.0]
[1719869552443,0.48643,3461.9,3461.5,3.0]
[1719869553043,0.48643,3461.9,3461.8,3.0]
[1719869557246,0.48643,3461.9,3461.8,3.6]
[1719869557427,0.48643,3462.2,3461.8,6.48867]
[1719869557631,0.48643,3462.1,3461.8,5.88867]
[1719869557831,0.48643,3462.0,3461.8,5.88867]
[1719869558036,0.48643,3461.9,3461.8,3.0]
[1719869558236,0.26023416,3461.9,3461.8,3.0]
[1719869558448,0.74666416,3461.9,3461.8,3.0]
[1719869558651,0.74666416,3461.9,3461.8,5.88867]
[1719869558819,0.74666416,3461.9,3461.8,6.2038289]
[1719869559216,0.74666416,3461.9,3461.8,3.0]
[1719869561158,0.74654278,3461.9,3461.8,3.0]
[1719869567735,0.74654278,3461.9,3461.5,5.88887]
[1719869567736,0.74654278,3461.9,3461.5,3.0]
[1719869567940,0.48630862,3461.8,3461.4,3.0]
[1719869568153,0.26023416,3461.9,3461.4,3.0]
[1719869568339,0.26022482,3461.7,3461.4,3.0]
[1719869568540,4.66811,3462.0,3461.4,3.45664161]
[1719869568741,0.26022482,3461.6,3461.4,3.0]
[1719869568941,4.66811,3462.0,3461.4,3.0]
[1719869569162,0.26022482,3461.5,3461.4,3.0]
[1719869569371,4.66811,3462.0,3461.4,3.0]
[1719869569664,0.26022482,3461.5,3461.4,3.0]
[1719869569830,0.26022482,3461.5,3461.3,5.88907]
[1719869570030,0.26022482,3461.5,3461.3,4.106527]
[1719869570228,0.26021545,3461.4,3461.3,4.106527]
[1719869570432,3.61659,3461.9,3461.3,6.0]
[1719869570647,0.74649952,3461.8,3461.3,6.0]
[1719869570850,0.48628407,3461.7,3461.3,6.0]
[1719869571240,0.48628407,3461.6,3461.3,6.0]
[1719869571447,0.26021545,3461.6,3461.3,6.0]
[1719869571850,0.26021545,3461.5,3461.3,6.0]
[1719869572247,0.26021545,3461.4,3460.9,5.2664]
[1719869572442,0.26021545,3461.4,3461.3,3.0]
[1719869572660,0.26021545,3461.4,3460.9,2.2664]
[1719869572936,3.14922545,3461.4,3460.9,2.2664]
[1719869573572,3.14922545,3461.4,3460.9,5.2664]
[1719869574351,0.26021545,3461.4,3461.3,3.0]
[1719869576632,0.26021545,3461.4,3460.9,6.0]
[1719869576949,0.74618937,3461.4,3460.9,6.0]
[1719869577147,0.26021545,3461.4,3460.9,6.0]
[1719869578347,0.26021545,3461.4,3460.9,3.0]
[1719869578876,0.728,3461.3,3460.9,3.0]
[1719869579378,0.26014062,3461.2,3460.9,3.0]
[1719869579551,0.728,3461.3,3460.9,3.0]
[1719869579751,0.26003024,3461.1,3460.9,3.0]
[1719869579955,0.728,3461.3,3460.9,3.0]
[1719869580146,0.26003024,3461.0,3460.9,3.0]
[1719869580336,4.66878,3461.2,3460.9,3.0]
[1719869580536,0.26003024,3461.0,3460.9,3.0]
[1719869580754,4.66878,3461.2,3460.9,3.0]
[1719869580960,0.26000594,3461.0,3460.9,3.0]
[1719869581163,1.7796,3460.9,3460.3,3.0]
[1719869581355,2.88959,3460.7,3460.3,3.0]
[1719869581660,0.25995727,3460.6,3460.3,3.0]
[1719869582349,2.88956,3460.8,3460.3,3.0]
[1719869582567,0.25995727,3460.5,3460.3,3.0]
[1719869582885,0.25995727,3460.4,3460.3,3.0]
[1719869583048,2.88956,3460.8,3460.3,6.0]
[1719869583255,2.88939,3461.0,3460.4,2.3226]
[1719869583455,0.25995727,3460.7,3460.4,5.21243]
[1719869583656,2.88917,3461.2,3460.4,5.21243]
[1719869583851,3.61717,3461.2,3460.6,2.88965]
[1719869584397,2.88917,3461.2,3460.6,2.88965]
[1719869584684,3.61717,3461.2,3460.6,2.88965]
[1719869586689,5.77808,3461.4,3460.6,2.88965]
[1719869586912,0.728,3461.1,3460.6,2.88965]
[1719869587055,4.66849,3461.6,3460.6,2.88965]
[1719869587259,0.728,3461.3,3460.8,2.88948]
[1719869588305,0.25984123,3461.2,3460.8,2.88948]
[1719869588798,0.25984123,3461.1,3460.8,2.88948]
[1719869588979,0.728,3461.3,3460.8,5.7789]
[1719869589292,0.011,3473.6,3460.8,5.7789]
[1719869589293,4.66819,3461.9,3461.1,2.88917]
[1719869589495,0.728,3461.7,3461.1,2.88917]
[1719869589663,0.728,3461.7,3461.2,2.88915]
[1719869590061,0.25986183,3461.6,3461.2,2.88915]
[1719869591069,0.25986183,3461.6,3461.2,0.810922]
[1719869591273,0.25986183,3461.6,3461.5,2.88892]
[1719869591460,1.7796,3462.3,3461.6,2.88882]
[1719869591659,1.7796,3462.3,3461.7,2.88872]
[1719869591660,0.728,3462.2,3461.7,2.88872]
[1719869591914,0.25991236,3462.2,3461.7,2.88872]
[1719869592286,0.25991236,3462.2,3461.8,2.88866]
[1719869592665,0.728,3462.3,3461.8,2.88866]
[1719869593178,0.25991236,3462.2,3461.8,2.88866]
[1719869593379,0.728,3462.3,3461.9,2.88854]
[1719869593593,0.25991236,3462.1,3462.0,2.88844]
[1719869593801,0.728,3462.4,3462.0,2.88844]
[1719869594092,0.26001526,3462.1,3462.0,2.88844]
[1719869594675,0.728,3462.4,3462.0,2.88844]
[1719869594876,0.26001526,3462.1,3462.0,2.88844]
[1719869595076,0.728,3462.4,3462.0,2.88844]
[1719869595277,0.26001526,3462.1,3462.0,2.88844]
[1719869595660,0.728,3462.4,3462.0,2.88844]
[1719869595859,0.26001526,3462.1,3462.0,2.88844]
[1719869596066,0.728,3462.3,3461.8,2.8886]
[1719869596265,0.728,3462.3,3461.7,5.34292]
[1719869596769,0.26001526,3462.2,3461.7,5.34292]
[1719869597098,0.26001526,3462.2,3461.7,6.177212]
[1719869597403,0.26001526,3462.2,3461.6,3.0]
[1719869598298,0.26001526,3462.2,3461.6,5.88882]
[1719869600107,0.728,3462.1,3461.6,5.88882]
[1719869600396,0.26021921,3462.0,3461.6,5.88882]
[1719869600614,2.88834,3462.2,3461.6,5.88882]
[1719869600769,0.26021921,3461.9,3461.6,5.88882]
[1719869600965,2.88834,3462.2,3461.6,5.88882]
[1719869601168,0.26021921,3461.8,3461.6,5.88882]
[1719869601379,2.88834,3462.2,3461.6,6.57539827]
[1719869601581,0.26021921,3461.7,3461.6,5.88882]
[1719869601780,2.88834,3462.2,3461.6,5.88882]
[1719869601998,0.26021921,3461.7,3461.6,5.88882]
[1719869602605,2.88834,3462.2,3461.6,5.88882]
[1719869602772,0.26021921,3461.7,3461.6,5.88882]
[1719869602969,2.88834,3462.2,3461.6,6.997265]
[1719869603192,0.25154235,3461.7,3461.6,5.88882]
[1719869603375,2.88834,3462.2,3461.6,5.88882]
[1719869603572,0.25154235,3461.7,3461.6,5.88882]
[1719869603787,2.88834,3462.2,3461.6,5.88882]
[1719869603970,0.25154235,3461.7,3461.6,5.88882]
[1719869604170,2.88834,3462.2,3461.6,5.88882]
[1719869604371,0.25154235,3461.7,3461.6,5.88882]
[1719869604593,2.88834,3462.2,3461.6,5.88882]
[1719869604791,0.25154235,3461.7,3461.6,5.88882]
[1719869604983,2.88834,3462.2,3461.6,5.88882]
[1719869605183,0.25154235,3461.7,3461.6,5.88882]
[1719869605718,2.88844,3462.1,3461.6,3.0]
[1719869605873,0.25154235,3462.0,3461.6,3.0]
[1719869608074,3.14005235,3462.0,3461.6,3.0]
[1719869611219,0.25154235,3462.0,3461.6,3.0]
[1719869611383,2.88847,3462.1,3461.6,3.0]
[1719869611690,0.25153098,3462.0,3461.6,3.0]
[1719869612703,3.14006098,3462.0,3461.6,3.0]
[1719869619112,6.02864098,3462.0,3461.6,3.0]
[1719869620621,2.88858,3461.9,3461.6,3.0]
[1719869620985,0.25153098,3461.8,3461.6,3.0]
[1719869632623,0.48660394,3461.7,3461.6,3.0]
[1719869632924,0.73815009,3461.7,3461.6,3.0]
[1719869636969,0.73815009,3461.7,3461.6,3.819577]
[1719869640636,0.73815009,3461.7,3461.6,6.292377]
[1719869642212,0.73815009,3461.7,3461.6,9.181207]
[1719869642608,0.48660394,3461.7,3461.6,9.181207]
[1719869642816,3.6162,3462.4,3461.8,2.2501]
[1719869643015,4.50054665,3462.3,3461.8,2.2501]
[1719869643222,1.61228665,3462.2,3461.8,2.2501]
[1719869643430,0.4867468,3462.1,3461.8,2.2501]
[1719869643623,1.11230207,3462.0,3461.8,3.4348267]
[1719869643818,0.4867468,3461.9,3461.8,3.4348267]
[1719869644018,0.25156891,3461.9,3461.8,3.4348267]
[1719869644243,0.73831571,3461.9,3461.8,3.4348267]
[1719869645007,0.25156891,3461.9,3461.8,3.4348267]
[1719869645212,0.73819439,3461.9,3461.8,3.4348267]
[1719869647109,0.7382545,3461.9,3461.8,3.4348267]
[1719869649933,0.7382545,3461.9,3461.8,2.2501]
[1719869650131,0.7382545,3461.9,3461.8,2.2001]
[1719869651123,0.7382545,3461.9,3461.6,3.0]
[1719869651328,0.48668559,3461.8,3461.6,3.0]
[1719869651519,0.25160301,3461.7,3461.6,3.0]
[1719869651720,0.48668559,3461.7,3461.6,3.0]
[1719869651923,0.7382886,3461.7,3461.6,3.0]
[1719869652116,0.7382886,3461.7,3461.6,3.877793]
[1719869653136,0.7382886,3461.7,3461.6,6.190793]
[1719869653742,0.7382886,3461.7,3461.6,9.079623]
[1719869654153,2.88838,3462.2,3461.6,9.079623]
[1719869654357,1.36377063,3462.1,3461.6,9.079623]
[1719869654538,1.11218847,3462.0,3461.6,9.079623]
[1719869654736,0.73814718,3461.9,3461.6,9.079623]
[1719869654923,0.73814718,3461.9,3461.7,1.1968533]
[1719869654924,0.48656122,3461.8,3461.7,1.1968533]
[1719869655325,0.25158596,3461.8,3461.7,1.1968533]
[1719869655520,0.48656122,3461.8,3461.7,1.1968533]
[1719869655720,0.73814718,3461.8,3461.7,1.1968533]
[1719869655958,0.73814718,3461.8,3461.7,4.0856033]
[1719869658653,0.25158596,3461.8,3461.7,4.0856033]
[1719869658855,0.73820292,3461.8,3461.7,4.0856033]
[1719869659060,0.48661696,3461.8,3461.7,4.0856033]
[1719869659255,0.73822187,3461.8,3461.7,4.0856033]
[1719869662270,0.73822187,3461.8,3461.7,4.0856033]
[1719869663635,0.73836395,3461.8,3461.7,4.0856033]
[1719869664268,0.73836088,3461.8,3461.7,4.0856033]
[1719869666367,0.73836088,3461.8,3461.7,7.03212182]
[1719869666571,0.48675597,3461.8,3461.7,7.03212182]
[1719869666867,0.48689779,3462.3,3461.9,2.88854]
[1719869667072,1.11270551,3462.2,3461.9,2.88854]
[1719869667241,1.11270551,3462.1,3461.9,2.88854]
[1719869667436,0.48689779,3462.0,3461.9,2.88854]
[1719869667652,0.2516068,3462.0,3461.9,2.88854]
[1719869667852,0.73850459,3462.0,3461.9,2.88854]
[1719869677579,0.73862738,3462.0,3461.9,2.88854]
[1719869680475,1.36461685,3462.0,3461.9,2.88854]
[1719869680849,0.73862738,3462.0,3461.9,2.88854]
[1719869681488,1.36461941,3462.0,3461.9,2.88854]
[1719869682779,0.73862738,3462.0,3461.9,2.88854]
[1719869683084,1.36466477,3462.0,3461.9,2.88854]
[1719869683263,1.3646791,3462.0,3461.9,2.88854]
[1719869684879,1.3646791,3462.0,3461.7,5.77742]
[1719869685083,0.48702058,3461.9,3461.8,2.88867]
[1719869685451,0.73872214,3461.9,3461.8,2.88867]
[1719869686379,0.73872214,3461.9,3461.7,2.88867]
[1719869686586,0.48702058,3461.8,3461.7,2.88867]
[1719869686884,0.73870511,3461.8,3461.7,2.88867]
[1719869688484,0.73870511,3461.8,3461.6,3.0]
[1719869688687,0.48702058,3461.7,3461.6,3.0]
[1719869689054,0.73870511,3461.7,3461.6,3.0]
[1719869689382,0.73870511,3461.7,3461.6,5.88883]
[1719869696969,0.25168453,3461.7,3461.6,5.88883]
[1719869697266,0.26692295,3462.0,3461.6,5.88883]
[1719869697466,0.25163713,3461.7,3461.6,5.88883]
[1719869697689,0.26692295,3461.7,3461.6,5.88883]
[1719869697895,0.25163713,3461.7,3461.6,5.88883]
[1719869698299,2.88842,3462.1,3461.6,5.88883]
[1719869698300,0.26692295,3461.8,3461.6,5.88883]
[1719869698479,0.51856008,3461.7,3461.6,5.88883]
[1719869707687,0.26692295,3461.7,3461.6,5.88883]
[1719869708470,0.26692295,3462.1,3461.6,5.88883]
[1719869708667,0.89305515,3462.0,3461.6,5.88883]
[1719869708878,1.14473588,3461.9,3461.6,5.88883]
[1719869709078,0.26692295,3461.8,3461.6,5.88883]
[1719869709483,0.26692295,3461.7,3461.6,5.88883]
[1719869709889,0.26692295,3462.1,3461.6,5.88883]
[1719869710097,0.89305848,3462.0,3461.6,5.88883]
[1719869710398,0.89305848,3461.9,3461.6,5.88883]
[1719869710593,0.26692295,3461.8,3461.6,5.88883]
[1719869710896,0.51860368,3461.7,3461.6,3.0]
[1719869713100,0.26692295,3461.7,3461.6,3.0]
[1719869713294,0.26692295,3461.8,3461.6,3.0]
[1719869713498,0.26692295,3461.7,3461.6,3.0]
[1719869713865,0.26692295,3461.8,3461.6,3.0]
[1719869714070,0.26692295,3461.7,3461.6,3.0]
[1719869714577,0.26692295,3461.8,3461.6,3.0]
[1719869714779,0.26692295,3461.7,3461.6,3.0]
[1719869715472,0.26692295,3461.8,3461.6,3.0]
[1719869715890,0.51860368,3461.7,3461.6,3.0]
[1719869726894,2.34820368,3461.7,3461.6,3.0]
[1719869727194,2.97441368,3461.7,3461.6,3.0]
[1719869728688,2.34820368,3461.7,3461.6,3.0]
[1719869729018,2.9744652,3461.7,3461.6,3.0]
[1719869729184,5.8632152,3461.7,3461.6,3.0]
[1719869729549,5.8632152,3461.7,3461.2,3.0]
[1719869729744,0.89318447,3461.6,3461.2,3.0]
[1719869729912,4.97003073,3461.7,3461.2,3.0]
[1719869729913,0.26692295,3461.5,3461.2,3.0]
[1719869730222,0.26692295,3461.4,3461.2,3.0]
[1719869730812,0.51845774,3461.3,3461.2,3.0]
[1719869733530,0.25153479,3461.3,3461.2,3.0]
[1719869733895,4.71835,3461.7,3461.2,3.0]
[1719869734118,0.56414043,3461.6,3461.2,3.0]
[1719869734294,0.26654135,3461.5,3461.2,3.0]
[1719869734709,0.56414043,3461.4,3461.2,3.0]
[1719869734905,0.29759908,3461.4,3461.2,3.0]
[1719869735144,4.71835,3461.7,3461.2,3.0]
[1719869735331,0.29759908,3461.3,3461.2,3.0]
[1719869735538,0.26651164,3461.3,3461.2,3.0]
[1719869735833,0.29759908,3461.3,3461.2,3.0]
[1719869736042,0.26651164,3461.3,3461.2,3.0]
[1719869736249,0.56411072,3461.3,3461.2,3.0]
[1719869736451,0.26651164,3461.3,3461.2,3.0]
[1719869736625,0.29759908,3461.3,3461.2,3.0]
[1719869736949,0.56402872,3461.3,3461.2,3.0]
[1719869737159,0.29759908,3461.3,3461.2,3.0]
[1719869737465,0.56403029,3461.3,3461.2,3.0]
[1719869738521,0.29759908,3461.3,3461.2,3.0]
[1719869738822,5.44635,3461.7,3461.2,3.0]
[1719869739020,0.29759908,3461.3,3461.2,3.0]
[1719869739978,2.88885,3461.6,3461.2,3.0]
[1719869740129,0.29759908,3461.3,3461.2,3.0]
[1719869740331,2.88885,3461.6,3461.2,3.0]
[1719869740562,0.29759908,3461.3,3461.2,3.0]
[1719869740744,2.88885,3461.6,3461.2,3.0]
[1719869740962,0.29759908,3461.3,3461.2,3.0]
[1719869741128,2.88885,3461.6,3461.2,3.0]
[1719869741327,0.29759908,3461.3,3461.2,3.0]
[1719869741582,2.88885,3461.6,3461.2,3.0]
[1719869741874,0.29759908,3461.3,3461.2,3.0]
[1719869742357,2.88885,3461.6,3461.2,3.0]
[1719869742558,0.29759908,3461.3,3461.2,3.0]
[1719869742865,2.88885,3461.6,3461.2,3.0]
[1719869743067,0.29759908,3461.3,3461.2,3.0]
[1719869743253,5.77776,3461.6,3461.2,3.0]
[1719869743438,0.29758391,3461.3,3461.2,3.0]
[1719869743645,0.26643068,3461.3,3461.2,3.0]
[1719869743837,0.56401459,3461.3,3461.2,3.0]
[1719869744040,0.26643068,3461.3,3461.2,3.0]
[1719869744337,0.29758391,3461.3,3461.2,3.0]
[1719869744543,0.26643068,3461.3,3461.2,3.0]
[1719869744728,0.56401459,3461.3,3461.2,3.0]
[1719869744925,0.26643068,3461.3,3461.2,3.0]
[1719869745131,0.56401459,3461.3,3461.2,3.0]
[1719869748424,0.29758391,3461.3,3461.2,3.0]
[1719869748959,0.29756114,3461.3,3461.2,3.0]
[1719869749456,2.88892,3461.5,3461.2,3.0]
[1719869749660,0.29756114,3461.3,3461.2,3.0]
[1719869749831,2.88892,3461.5,3461.2,3.0]
[1719869750026,0.29756114,3461.3,3461.2,3.0]
[1719869750259,2.88892,3461.5,3461.2,3.0]
[1719869750459,0.29756114,3461.3,3461.2,3.0]
[1719869750939,2.88892,3461.5,3461.2,3.0]
[1719869751142,0.26637414,3461.4,3461.2,3.0]
[1719869751324,0.56393528,3461.4,3461.2,3.0]
[1719869751527,0.29756114,3461.4,3461.2,3.0]